[Event "Early-Titled-Tuesday-Blitz-April-23-2024"]
[Site "Chess.com"]
[Date "2024.04.23"]
[Round "10"]
[White "2Coaches1Profile"]
[Black "LikeWater"]
[Result "0-1"]
[WhiteElo "2556"]
[BlackElo "2683"]
[TimeControl "180+1"]
[EndTime "10:00:06 PDT"]
[Termination "LikeWater won by checkmate"]

1. d4 {[%clk 0:02:59.7]} 1... Nf6 {[%clk 0:02:59.1]} 2. Bg5 {[%clk 0:02:58.9]}
2... c5 {[%clk 0:02:58]} 3. d5 {[%clk 0:02:58.6]} 3... g6 {[%clk 0:02:54.2]} 4.
Nc3 {[%clk 0:02:57.8]} 4... b5 {[%clk 0:02:49.5]} 5. Nxb5 {[%clk 0:02:39.1]}
5... Qa5+ {[%clk 0:02:49.3]} 6. Nc3 {[%clk 0:02:38.8]} 6... Ne4 {[%clk
0:02:46.3]} 7. Bd2 {[%clk 0:02:38.4]} 7... Nxd2 {[%clk 0:02:46]} 8. Qxd2 {[%clk
0:02:39.3]} 8... Bg7 {[%clk 0:02:45.8]} 9. e4 {[%clk 0:02:32.4]} 9... O-O {[%clk
0:02:45.9]} 10. Nf3 {[%clk 0:02:31.8]} 10... d6 {[%clk 0:02:46.3]} 11. Be2
{[%clk 0:02:12.1]} 11... Nd7 {[%clk 0:02:34.6]} 12. O-O {[%clk 0:02:10.7]} 12...
Rb8 {[%clk 0:02:34.5]} 13. Rab1 {[%clk 0:01:43.4]} 13... Rxb2 {[%clk 0:02:25.9]}
14. Rxb2 {[%clk 0:01:44.3]} 14... Bxc3 {[%clk 0:02:25.7]} 15. Qc1 {[%clk
0:01:44.4]} 15... Bxb2 {[%clk 0:02:24.1]} 16. Qxb2 {[%clk 0:01:45.3]} 16... Ba6
{[%clk 0:02:22.9]} 17. Bxa6 {[%clk 0:01:30.5]} 17... Qxa6 {[%clk 0:02:23.8]} 18.
h4 {[%clk 0:01:31.3]} 18... Rb8 {[%clk 0:02:22.1]} 19. Qc3 {[%clk 0:01:26.9]}
19... Rb4 {[%clk 0:02:04.6]} 20. e5 {[%clk 0:01:19.8]} 20... Qxa2 {[%clk
0:01:47.7]} 21. exd6 {[%clk 0:01:04.4]} 21... exd6 {[%clk 0:01:48.6]} 22. Ra1
{[%clk 0:01:04.7]} 22... Qxd5 {[%clk 0:00:37.1]} 23. Rxa7 {[%clk 0:01:03.6]}
23... Ne5 {[%clk 0:00:31.7]} 24. Nxe5 {[%clk 0:00:15.6]} 24... dxe5 {[%clk
0:00:31.3]} 25. h5 {[%clk 0:00:07.6]} 25... Qd1+ {[%clk 0:00:28.9]} 26. Kh2
{[%clk 0:00:07.9]} 26... Rh4+ {[%clk 0:00:28.7]} 27. Kg3 {[%clk 0:00:06.9]}
27... Qg4# {[%clk 0:00:28.3]} 0-1

[Event "Early-Titled-Tuesday-Blitz-April-23-2024"]
[Site "Chess.com"]
[Date "2024.04.23"]
[Round "10"]
[White "CSB7"]
[Black "biveklama"]
[Result "1-0"]
[WhiteElo "2806"]
[BlackElo "2615"]
[TimeControl "180+1"]
[EndTime "10:00:07 PDT"]
[Termination "CSB7 won on time"]

1. d4 {[%clk 0:03:00.9]} 1... d5 {[%clk 0:03:00.2]} 2. c4 {[%clk 0:03:00.1]}
2... c6 {[%clk 0:03:00.4]} 3. Nc3 {[%clk 0:02:54]} 3... Nf6 {[%clk 0:03:00.3]}
4. e3 {[%clk 0:02:54.6]} 4... e6 {[%clk 0:02:44.9]} 5. Nf3 {[%clk 0:02:54.2]}
5... Be7 {[%clk 0:02:44.3]} 6. Bd3 {[%clk 0:02:51.5]} 6... O-O {[%clk
0:02:44.1]} 7. O-O {[%clk 0:02:51.3]} 7... Nbd7 {[%clk 0:02:39.8]} 8. Qc2 {[%clk
0:02:36.3]} 8... b6 {[%clk 0:02:36.9]} 9. b3 {[%clk 0:02:14.9]} 9... Bb7 {[%clk
0:02:36.3]} 10. Bb2 {[%clk 0:02:15.6]} 10... Re8 {[%clk 0:02:20.7]} 11. Rfd1
{[%clk 0:02:08.2]} 11... a5 {[%clk 0:02:11.2]} 12. Rac1 {[%clk 0:01:53.8]} 12...
Qc7 {[%clk 0:02:02.2]} 13. e4 {[%clk 0:01:46.9]} 13... dxe4 {[%clk 0:02:01.7]}
14. Nxe4 {[%clk 0:01:47.8]} 14... Nxe4 {[%clk 0:02:01.4]} 15. Bxe4 {[%clk
0:01:48.7]} 15... Nf6 {[%clk 0:01:58.7]} 16. Bd3 {[%clk 0:01:49.3]} 16... c5
{[%clk 0:01:48.8]} 17. d5 {[%clk 0:01:47.7]} 17... exd5 {[%clk 0:01:39.9]} 18.
cxd5 {[%clk 0:01:47.8]} 18... h6 {[%clk 0:00:51.8]} 19. Bc4 {[%clk 0:01:03.1]}
19... Rad8 {[%clk 0:00:48.4]} 20. Qf5 {[%clk 0:00:59.4]} 20... Bc8 {[%clk
0:00:40.9]} 21. Qd3 {[%clk 0:00:51.8]} 21... Bb7 {[%clk 0:00:38.3]} 22. Be5
{[%clk 0:00:37.4]} 22... Bd6 {[%clk 0:00:15.7]} 23. Bxf6 {[%clk 0:00:37]} 23...
gxf6 {[%clk 0:00:16.6]} 24. Qf5 {[%clk 0:00:34.5]} 24... Qe7 {[%clk 0:00:07.4]}
25. Bd3 {[%clk 0:00:25.6]} 1-0

[Event "Early-Titled-Tuesday-Blitz-April-23-2024"]
[Site "Chess.com"]
[Date "2024.04.23"]
[Round "10"]
[White "LamaChampetre"]
[Black "alvarorodriguezavila"]
[Result "0-1"]
[WhiteElo "2242"]
[BlackElo "2355"]
[TimeControl "180+1"]
[EndTime "10:00:09 PDT"]
[Termination "alvarorodriguezavila won on time"]

1. d4 {[%clk 0:02:52.1]} 1... Nf6 {[%clk 0:02:58.5]} 2. c4 {[%clk 0:02:52.1]}
2... Nc6 {[%clk 0:02:58.1]} 3. Nf3 {[%clk 0:02:50.3]} 3... e6 {[%clk 0:02:58.1]}
4. Nc3 {[%clk 0:02:34.8]} 4... Bb4 {[%clk 0:02:58.5]} 5. Bg5 {[%clk 0:02:33.3]}
5... h6 {[%clk 0:02:57.8]} 6. Bh4 {[%clk 0:02:32.3]} 6... g5 {[%clk 0:02:58.4]}
7. Bg3 {[%clk 0:02:32.7]} 7... Ne4 {[%clk 0:02:59.2]} 8. Rc1 {[%clk 0:02:30.5]}
8... f5 {[%clk 0:02:56.7]} 9. e3 {[%clk 0:02:29]} 9... h5 {[%clk 0:02:45.5]} 10.
Ne5 {[%clk 0:02:09.9]} 10... h4 {[%clk 0:02:42]} 11. Nxc6 {[%clk 0:02:09.2]}
11... bxc6 {[%clk 0:02:42.6]} 12. Be5 {[%clk 0:02:09.2]} 12... Rh7 {[%clk
0:02:30.2]} 13. h3 {[%clk 0:00:45.5]} 13... d6 {[%clk 0:02:06.2]} 14. Bh2 {[%clk
0:00:45.1]} 14... Qf6 {[%clk 0:02:06.8]} 15. Bd3 {[%clk 0:00:40]} 15... Bd7
{[%clk 0:01:38.3]} 16. O-O {[%clk 0:00:39.4]} 16... Nxc3 {[%clk 0:01:37.2]} 17.
bxc3 {[%clk 0:00:39.1]} 17... Ba5 {[%clk 0:01:37.9]} 18. Qa4 {[%clk 0:00:30.9]}
18... Bb6 {[%clk 0:01:34.4]} 19. Qa3 {[%clk 0:00:31.1]} 19... c5 {[%clk
0:01:33.6]} 20. Rfd1 {[%clk 0:00:27.8]} 20... Rg7 {[%clk 0:01:28.5]} 21. Qa6
{[%clk 0:00:20.7]} 21... g4 {[%clk 0:01:20.6]} 22. Qb7 {[%clk 0:00:20.4]} 22...
Rd8 {[%clk 0:01:18.3]} 23. hxg4 {[%clk 0:00:20.5]} 23... Rxg4 {[%clk 0:01:17]}
24. Be2 {[%clk 0:00:18.9]} 24... Rg7 {[%clk 0:01:16.3]} 25. Qf3 {[%clk
0:00:17.5]} 25... Ke7 {[%clk 0:01:13.1]} 26. a4 {[%clk 0:00:12.7]} 26... Rdg8
{[%clk 0:01:13.5]} 27. Bf1 {[%clk 0:00:12.2]} 27... Bxa4 {[%clk 0:01:11.6]} 28.
Rd2 {[%clk 0:00:11.8]} 28... Rh8 {[%clk 0:00:55.5]} 29. Re1 {[%clk 0:00:11.2]}
29... h3 {[%clk 0:00:55.5]} 30. g3 {[%clk 0:00:11]} 30... Bd7 {[%clk 0:00:52.4]}
31. e4 {[%clk 0:00:09.1]} 31... fxe4 {[%clk 0:00:51]} 32. Qxf6+ {[%clk
0:00:09.2]} 32... Kxf6 {[%clk 0:00:50.7]} 33. Rxe4 {[%clk 0:00:08.6]} 33... Bc6
{[%clk 0:00:46.5]} 34. Rf4+ {[%clk 0:00:08.7]} 34... Ke7 {[%clk 0:00:47]} 35.
Re2 {[%clk 0:00:06.3]} 35... Kd7 {[%clk 0:00:45.8]} 36. Rf6 {[%clk 0:00:05.8]}
36... cxd4 {[%clk 0:00:45.1]} 37. cxd4 {[%clk 0:00:04]} 37... Bxd4 {[%clk
0:00:45.7]} 38. Rfxe6 {[%clk 0:00:03.7]} 38... Be5 {[%clk 0:00:46.2]} 0-1

[Event "Early-Titled-Tuesday-Blitz-April-23-2024"]
[Site "Chess.com"]
[Date "2024.04.23"]
[Round "10"]
[White "nekotyanof"]
[Black "Elegance_Riks"]
[Result "1-0"]
[WhiteElo "2694"]
[BlackElo "2786"]
[TimeControl "180+1"]
[EndTime "10:00:11 PDT"]
[Termination "nekotyanof won by resignation"]

1. e4 {[%clk 0:03:00.9]} 1... e6 {[%clk 0:02:59.1]} 2. d4 {[%clk 0:03:01]} 2...
d5 {[%clk 0:02:59.4]} 3. Nd2 {[%clk 0:03:01.7]} 3... c5 {[%clk 0:02:56.4]} 4.
exd5 {[%clk 0:03:01.5]} 4... exd5 {[%clk 0:02:56.8]} 5. Bb5+ {[%clk 0:03:00.8]}
5... Nc6 {[%clk 0:02:53.8]} 6. Ngf3 {[%clk 0:02:56.7]} 6... Qe7+ {[%clk
0:02:53.8]} 7. Qe2 {[%clk 0:02:56.7]} 7... Qxe2+ {[%clk 0:02:52.6]} 8. Kxe2
{[%clk 0:02:56.6]} 8... a6 {[%clk 0:02:52.8]} 9. Bxc6+ {[%clk 0:02:54.6]} 9...
bxc6 {[%clk 0:02:53.3]} 10. c4 {[%clk 0:02:45.7]} 10... f6 {[%clk 0:02:35.9]}
11. Rd1 {[%clk 0:02:42.6]} 11... a5 {[%clk 0:02:29.5]} 12. b3 {[%clk 0:02:26.4]}
12... Ba6 {[%clk 0:02:19.3]} 13. Ba3 {[%clk 0:02:21]} 13... cxd4 {[%clk
0:02:09.7]} 14. Bxf8 {[%clk 0:02:20.5]} 14... Kxf8 {[%clk 0:02:09.9]} 15. Nxd4
{[%clk 0:02:19]} 15... Ne7 {[%clk 0:02:10]} 16. Kf3 {[%clk 0:02:04.6]} 16... Kf7
{[%clk 0:02:07.9]} 17. c5 {[%clk 0:01:51.6]} 17... Rhe8 {[%clk 0:01:54.6]} 18.
Re1 {[%clk 0:01:50.8]} 18... Bb7 {[%clk 0:01:45.3]} 19. Kg3 {[%clk 0:01:34.4]}
19... Ng6 {[%clk 0:01:37.6]} 20. Nf5 {[%clk 0:01:28.9]} 20... Rxe1 {[%clk
0:01:24.1]} 21. Nd6+ {[%clk 0:01:28.3]} 21... Kf8 {[%clk 0:01:23.7]} 22. Rxe1
{[%clk 0:01:29.2]} 22... Ba6 {[%clk 0:01:23.5]} 23. f4 {[%clk 0:01:20.2]} 23...
Bd3 {[%clk 0:01:15.6]} 24. Nf3 {[%clk 0:01:17.8]} 24... Ne7 {[%clk 0:00:50.4]}
25. Nd4 {[%clk 0:01:17.3]} 25... Ra7 {[%clk 0:00:44.9]} 26. Nxc6 {[%clk
0:01:15.5]} 26... Rc7 {[%clk 0:00:45.1]} 27. Nd4 {[%clk 0:00:42.5]} 27... Kg8
{[%clk 0:00:30.2]} 28. Ne8 {[%clk 0:00:41.8]} 28... Ra7 {[%clk 0:00:26.2]} 29.
c6 {[%clk 0:00:41.5]} 29... Nf5+ {[%clk 0:00:25.6]} 30. Nxf5 {[%clk 0:00:41.5]}
30... Bxf5 {[%clk 0:00:26]} 31. Nd6 {[%clk 0:00:42.1]} 31... Be4 {[%clk
0:00:21.2]} 32. Rc1 {[%clk 0:00:30.1]} 32... Rc7 {[%clk 0:00:14.5]} 33. Nb5
{[%clk 0:00:30.3]} 33... Rc8 {[%clk 0:00:14.5]} 34. c7 {[%clk 0:00:30.6]} 34...
Bf5 {[%clk 0:00:14.1]} 35. Nd6 {[%clk 0:00:31]} 1-0

[Event "Early-Titled-Tuesday-Blitz-April-23-2024"]
[Site "Chess.com"]
[Date "2024.04.23"]
[Round "10"]
[White "tetrix83"]
[Black "ValentinDragnev"]
[Result "1-0"]
[WhiteElo "2664"]
[BlackElo "2739"]
[TimeControl "180+1"]
[EndTime "10:00:11 PDT"]
[Termination "tetrix83 won by resignation"]

1. Nf3 {[%clk 0:03:00.9]} 1... Nc6 {[%clk 0:02:58]} 2. e4 {[%clk 0:03:00.4]}
2... e5 {[%clk 0:02:51.9]} 3. Bb5 {[%clk 0:03:00.7]} 3... a6 {[%clk 0:02:52.5]}
4. Bxc6 {[%clk 0:03:00.3]} 4... dxc6 {[%clk 0:02:52]} 5. O-O {[%clk 0:03:01.2]}
5... Be6 {[%clk 0:02:48.3]} 6. Nc3 {[%clk 0:02:53.2]} 6... f6 {[%clk 0:02:45.3]}
7. d4 {[%clk 0:02:53.3]} 7... Bg4 {[%clk 0:02:41.9]} 8. dxe5 {[%clk 0:02:46.4]}
8... Qxd1 {[%clk 0:02:42.8]} 9. Rxd1 {[%clk 0:02:46.8]} 9... Bxf3 {[%clk
0:02:34]} 10. gxf3 {[%clk 0:02:46.9]} 10... fxe5 {[%clk 0:02:34.9]} 11. f4
{[%clk 0:02:45]} 11... Bd6 {[%clk 0:02:34.4]} 12. fxe5 {[%clk 0:02:38.3]} 12...
Bxe5 {[%clk 0:02:35.3]} 13. Ne2 {[%clk 0:02:37.1]} 13... Nf6 {[%clk 0:02:26.6]}
14. f4 {[%clk 0:02:34.6]} 14... Bd6 {[%clk 0:02:27]} 15. e5 {[%clk 0:02:27.8]}
15... Bc5+ {[%clk 0:02:27.6]} 16. Kg2 {[%clk 0:02:27.9]} 16... Nd5 {[%clk
0:02:27.6]} 17. c4 {[%clk 0:02:16]} 17... Nb6 {[%clk 0:02:27.6]} 18. b3 {[%clk
0:02:12.8]} 18... O-O {[%clk 0:02:26.2]} 19. Ng3 {[%clk 0:02:00.1]} 19... Rad8
{[%clk 0:02:18.1]} 20. Bd2 {[%clk 0:01:44.6]} 20... Rd3 {[%clk 0:02:08]} 21. Ne4
{[%clk 0:01:34.5]} 21... Be3 {[%clk 0:02:07.8]} 22. Bb4 {[%clk 0:01:15.9]} 22...
Rxd1 {[%clk 0:01:52.1]} 23. Rxd1 {[%clk 0:01:16.8]} 23... Rxf4 {[%clk
0:01:52.5]} 24. e6 {[%clk 0:01:11.9]} 24... h6 {[%clk 0:01:46]} 25. Rd8+ {[%clk
0:01:04.5]} 25... Kh7 {[%clk 0:01:46]} 26. e7 {[%clk 0:00:40.8]} 26... Rxe4
{[%clk 0:01:46.3]} 27. e8=Q {[%clk 0:00:40.8]} 27... Rxe8 {[%clk 0:01:46.9]} 28.
Rxe8 {[%clk 0:00:41.6]} 28... Bf4 {[%clk 0:01:47.6]} 29. Rb8 {[%clk 0:00:34.3]}
29... Nd7 {[%clk 0:01:39.4]} 30. Rxb7 {[%clk 0:00:33.4]} 30... Kg6 {[%clk
0:01:29.6]} 31. Ra7 {[%clk 0:00:31.9]} 31... Kf5 {[%clk 0:01:27]} 32. Rxa6
{[%clk 0:00:31.8]} 32... c5 {[%clk 0:01:27.1]} 33. Bc3 {[%clk 0:00:30.4]} 33...
g6 {[%clk 0:01:21.2]} 34. a4 {[%clk 0:00:29.9]} 34... h5 {[%clk 0:01:17.4]} 35.
a5 {[%clk 0:00:29.7]} 35... g5 {[%clk 0:01:17.4]} 36. Ra8 {[%clk 0:00:20.9]}
36... h4 {[%clk 0:01:09.6]} 37. Rd8 {[%clk 0:00:20.9]} 37... Ke6 {[%clk
0:01:09.2]} 38. a6 {[%clk 0:00:18]} 38... g4 {[%clk 0:01:02.7]} 39. a7 {[%clk
0:00:16.8]} 39... h3+ {[%clk 0:01:01.6]} 40. Kg1 {[%clk 0:00:15.8]} 40... Nb6
{[%clk 0:01:02.5]} 41. Ba5 {[%clk 0:00:12.6]} 41... Be3+ {[%clk 0:00:57.7]} 42.
Kh1 {[%clk 0:00:12.2]} 42... Ke7 {[%clk 0:00:57.7]} 43. Bxb6 {[%clk 0:00:11.6]}
43... Kxd8 {[%clk 0:00:57.9]} 44. a8=Q+ {[%clk 0:00:11.8]} 44... Kd7 {[%clk
0:00:58.8]} 45. Qd5+ {[%clk 0:00:12]} 45... Kc8 {[%clk 0:00:59.4]} 46. Qc6
{[%clk 0:00:11.1]} 1-0

[Event "Early-Titled-Tuesday-Blitz-April-23-2024"]
[Site "Chess.com"]
[Date "2024.04.23"]
[Round "10"]
[White "AlphaGoosee"]
[Black "superchess02"]
[Result "0-1"]
[WhiteElo "2638"]
[BlackElo "2881"]
[TimeControl "180+1"]
[EndTime "10:00:11 PDT"]
[Termination "superchess02 won by resignation"]

1. e4 {[%clk 0:03:00.9]} 1... c5 {[%clk 0:03:00]} 2. Nf3 {[%clk 0:03:01.3]} 2...
d6 {[%clk 0:03:00.4]} 3. d4 {[%clk 0:03:01.5]} 3... cxd4 {[%clk 0:03:01.3]} 4.
Nxd4 {[%clk 0:03:02.4]} 4... Nf6 {[%clk 0:03:01.9]} 5. Nc3 {[%clk 0:03:03.1]}
5... a6 {[%clk 0:03:02.3]} 6. f3 {[%clk 0:03:03.6]} 6... e6 {[%clk 0:03:02.1]}
7. Nb3 {[%clk 0:03:04.3]} 7... b5 {[%clk 0:03:02.4]} 8. Be2 {[%clk 0:03:00.6]}
8... Bb7 {[%clk 0:03:02.3]} 9. O-O {[%clk 0:03:00.4]} 9... Nbd7 {[%clk
0:03:02.6]} 10. a4 {[%clk 0:03:00.2]} 10... b4 {[%clk 0:03:02.1]} 11. Na2 {[%clk
0:03:00.8]} 11... d5 {[%clk 0:03:02.6]} 12. exd5 {[%clk 0:02:51.3]} 12... Bxd5
{[%clk 0:03:02.9]} 13. a5 {[%clk 0:02:47.7]} 13... Bd6 {[%clk 0:03:02.3]} 14. c4
{[%clk 0:02:47.4]} 14... bxc3 {[%clk 0:02:57.5]} 15. Nxc3 {[%clk 0:02:47.8]}
15... Qb8 {[%clk 0:02:57.3]} 16. Nxd5 {[%clk 0:02:41.1]} 16... Bxh2+ {[%clk
0:02:57.1]} 17. Kh1 {[%clk 0:02:40.8]} 17... Nxd5 {[%clk 0:02:57.6]} 18. Ra4
{[%clk 0:02:27.7]} 18... Bg3 {[%clk 0:02:53.3]} 19. Rg4 {[%clk 0:02:19.5]} 19...
h5 {[%clk 0:02:19.4]} 20. Rxg7 {[%clk 0:02:17.1]} 20... h4 {[%clk 0:02:02.5]}
21. f4 {[%clk 0:02:14.5]} 21... N7f6 {[%clk 0:01:47.7]} 22. Bc4 {[%clk
0:01:50.1]} 22... Qb4 {[%clk 0:01:11.8]} 23. Bxd5 {[%clk 0:01:40.2]} 23... Nxd5
{[%clk 0:01:11.9]} 24. Nd4 {[%clk 0:01:39.9]} 24... Rc8 {[%clk 0:00:56.9]} 25.
Nxe6 {[%clk 0:01:14.8]} 25... fxe6 {[%clk 0:00:51.9]} 26. Qg4 {[%clk 0:01:13.6]}
26... Qe4 {[%clk 0:00:48.4]} 27. Bd2 {[%clk 0:00:59]} 27... Rc2 {[%clk
0:00:27.3]} 28. Rg6 {[%clk 0:00:48.1]} 28... Kd7 {[%clk 0:00:21.5]} 29. Rd1
{[%clk 0:00:35.7]} 29... Rxd2 {[%clk 0:00:20.9]} 30. Rg1 {[%clk 0:00:22.9]}
30... h3 {[%clk 0:00:20.7]} 31. Rg7+ {[%clk 0:00:21.2]} 31... Kd6 {[%clk
0:00:20.5]} 0-1

[Event "Early-Titled-Tuesday-Blitz-April-23-2024"]
[Site "Chess.com"]
[Date "2024.04.23"]
[Round "10"]
[White "BenchGM"]
[Black "willyam13"]
[Result "0-1"]
[WhiteElo "2230"]
[BlackElo "2434"]
[TimeControl "180+1"]
[EndTime "10:00:13 PDT"]
[Termination "willyam13 won on time"]

1. e4 {[%clk 0:03:00.9]} 1... e5 {[%clk 0:03:00.1]} 2. Nf3 {[%clk 0:03:00.7]}
2... Nc6 {[%clk 0:03:00.7]} 3. Bb5 {[%clk 0:03:00.6]} 3... a6 {[%clk 0:03:01.3]}
4. Ba4 {[%clk 0:03:00.6]} 4... Nf6 {[%clk 0:03:01.7]} 5. O-O {[%clk 0:02:57.6]}
5... Be7 {[%clk 0:03:02.1]} 6. Re1 {[%clk 0:02:55.8]} 6... b5 {[%clk 0:03:02.7]}
7. Bb3 {[%clk 0:02:55.5]} 7... d6 {[%clk 0:03:03.6]} 8. c3 {[%clk 0:02:53.6]}
8... O-O {[%clk 0:03:04]} 9. h3 {[%clk 0:02:53.4]} 9... Na5 {[%clk 0:03:04.7]}
10. Bc2 {[%clk 0:02:44.4]} 10... c5 {[%clk 0:03:05.3]} 11. d4 {[%clk 0:02:35.4]}
11... Qc7 {[%clk 0:03:05.9]} 12. Nbd2 {[%clk 0:02:11.4]} 12... cxd4 {[%clk
0:03:06.5]} 13. cxd4 {[%clk 0:02:09.8]} 13... Rd8 {[%clk 0:03:07.2]} 14. Nf1
{[%clk 0:02:00.4]} 14... Bb7 {[%clk 0:03:06]} 15. Ng3 {[%clk 0:01:51.3]} 15...
Nc6 {[%clk 0:03:03.5]} 16. Nf5 {[%clk 0:01:26.9]} 16... Bf8 {[%clk 0:02:32.6]}
17. Bg5 {[%clk 0:01:19.5]} 17... Nb4 {[%clk 0:02:25.7]} 18. Bxf6 {[%clk
0:01:03.5]} 18... gxf6 {[%clk 0:02:19.8]} 19. Bb3 {[%clk 0:00:46]} 19... a5
{[%clk 0:02:04.8]} 20. Nh2 {[%clk 0:00:11.2]} 20... a4 {[%clk 0:02:01.1]} 21.
Ng4 {[%clk 0:00:08.7]} 21... Bg7 {[%clk 0:01:44.2]} 22. Ngh6+ {[%clk 0:00:07.4]}
22... Kf8 {[%clk 0:01:38.6]} 23. Bxf7 {[%clk 0:00:05.5]} 23... Bc8 {[%clk
0:01:25.3]} 24. Qg4 {[%clk 0:00:05.1]} 24... Bxf5 {[%clk 0:01:21.4]} 25. exf5
{[%clk 0:00:03.5]} 25... Bxh6 {[%clk 0:00:44]} 26. Qg8+ {[%clk 0:00:03]} 26...
Ke7 {[%clk 0:00:44.7]} 27. Qxh7 {[%clk 0:00:03.7]} 27... Rh8 {[%clk 0:00:45]}
28. Qg6 {[%clk 0:00:04.1]} 28... Nc2 {[%clk 0:00:29.8]} 29. Be6 {[%clk
0:00:04.2]} 29... Raf8 {[%clk 0:00:27.9]} 30. Re2 {[%clk 0:00:01.3]} 30... Nxa1
{[%clk 0:00:27.2]} 0-1

[Event "Early-Titled-Tuesday-Blitz-April-23-2024"]
[Site "Chess.com"]
[Date "2024.04.23"]
[Round "10"]
[White "ChadBiryani"]
[Black "DanyKopy"]
[Result "0-1"]
[WhiteElo "2448"]
[BlackElo "2561"]
[TimeControl "180+1"]
[EndTime "10:00:15 PDT"]
[Termination "DanyKopy won by resignation"]

1. c4 {[%clk 0:02:59.6]} 1... e6 {[%clk 0:02:58]} 2. g3 {[%clk 0:02:58.4]} 2...
Nf6 {[%clk 0:02:57.9]} 3. Bg2 {[%clk 0:02:58.6]} 3... d5 {[%clk 0:02:58.1]} 4.
Nf3 {[%clk 0:02:58]} 4... c5 {[%clk 0:02:54.5]} 5. cxd5 {[%clk 0:02:57.1]} 5...
exd5 {[%clk 0:02:54]} 6. d4 {[%clk 0:02:56.8]} 6... Nc6 {[%clk 0:02:54.1]} 7.
O-O {[%clk 0:02:56]} 7... Bg4 {[%clk 0:02:52.7]} 8. dxc5 {[%clk 0:02:52.7]} 8...
Bxc5 {[%clk 0:02:52.5]} 9. Nc3 {[%clk 0:02:49.3]} 9... O-O {[%clk 0:02:51.5]}
10. Bg5 {[%clk 0:02:45.4]} 10... d4 {[%clk 0:02:45.6]} 11. Bxf6 {[%clk
0:02:45.1]} 11... Qxf6 {[%clk 0:02:45]} 12. Ne4 {[%clk 0:02:45.5]} 12... Qe7
{[%clk 0:02:44.8]} 13. Nxc5 {[%clk 0:02:45.1]} 13... Qxc5 {[%clk 0:02:45.7]} 14.
Qd2 {[%clk 0:02:41]} 14... Rfe8 {[%clk 0:02:43.9]} 15. Rac1 {[%clk 0:02:40.1]}
15... Qb6 {[%clk 0:02:39.7]} 16. h3 {[%clk 0:02:37.4]} 16... Bh5 {[%clk
0:02:35.9]} 17. Rc4 {[%clk 0:02:25]} 17... Rad8 {[%clk 0:02:35]} 18. Rd1 {[%clk
0:02:20.6]} 18... d3 {[%clk 0:02:26.9]} 19. e3 {[%clk 0:01:19.4]} 19... Bxf3
{[%clk 0:01:37.9]} 20. Bxf3 {[%clk 0:01:17.1]} 20... Ne5 {[%clk 0:01:38.5]} 21.
Rf4 {[%clk 0:01:14.5]} 21... g5 {[%clk 0:01:36.3]} 22. Rf5 {[%clk 0:01:07.7]}
22... Qg6 {[%clk 0:01:36.8]} 23. Be4 {[%clk 0:00:59.4]} 23... Qxf5 {[%clk
0:01:33.6]} 24. Bxf5 {[%clk 0:00:58.7]} 24... Nf3+ {[%clk 0:01:33.7]} 25. Kg2
{[%clk 0:00:59]} 25... Nxd2 {[%clk 0:01:34.6]} 26. Rxd2 {[%clk 0:00:57]} 26...
Re5 {[%clk 0:01:30]} 27. g4 {[%clk 0:00:54.4]} 27... Rd6 {[%clk 0:01:19.7]} 28.
a3 {[%clk 0:00:45.4]} 28... h6 {[%clk 0:01:13.4]} 29. Kg3 {[%clk 0:00:28.7]}
29... Kf8 {[%clk 0:01:06.2]} 30. h4 {[%clk 0:00:28.4]} 30... Ke7 {[%clk
0:01:05.6]} 31. hxg5 {[%clk 0:00:27.9]} 31... hxg5 {[%clk 0:01:05.5]} 32. Kf3
{[%clk 0:00:22.2]} 32... Rc5 {[%clk 0:01:01.6]} 33. e4 {[%clk 0:00:13.4]} 33...
Rc2 {[%clk 0:00:58.4]} 34. Ke3 {[%clk 0:00:13.9]} 34... Rxd2 {[%clk 0:00:58.3]}
35. Kxd2 {[%clk 0:00:14.3]} 35... Kf6 {[%clk 0:00:57.3]} 36. Bc8 {[%clk
0:00:11.4]} 36... b6 {[%clk 0:00:56.5]} 37. Bb7 {[%clk 0:00:10.8]} 37... Rd4
{[%clk 0:00:49.2]} 38. f3 {[%clk 0:00:09.8]} 38... Ke5 {[%clk 0:00:48.8]} 39.
Ba6 {[%clk 0:00:08]} 39... Kf4 {[%clk 0:00:47.2]} 40. Bxd3 {[%clk 0:00:07.7]}
40... Kxf3 {[%clk 0:00:46.6]} 41. e5 {[%clk 0:00:07.4]} 41... Kxg4 {[%clk
0:00:44.9]} 42. Kc3 {[%clk 0:00:07.8]} 42... Rxd3+ {[%clk 0:00:44.7]} 43. Kxd3
{[%clk 0:00:08.2]} 43... Kf4 {[%clk 0:00:44.7]} 44. Kd4 {[%clk 0:00:07.9]} 44...
g4 {[%clk 0:00:45.1]} 0-1

[Event "Early-Titled-Tuesday-Blitz-April-23-2024"]
[Site "Chess.com"]
[Date "2024.04.23"]
[Round "10"]
[White "Zhigalko_Sergei"]
[Black "Zurability"]
[Result "1-0"]
[WhiteElo "2929"]
[BlackElo "2740"]
[TimeControl "180+1"]
[EndTime "10:00:17 PDT"]
[Termination "Zhigalko_Sergei won on time"]

1. e4 {[%clk 0:03:00.9]} 1... c5 {[%clk 0:03:00.2]} 2. Nf3 {[%clk 0:03:01]} 2...
d6 {[%clk 0:03:00.7]} 3. d4 {[%clk 0:03:01.4]} 3... cxd4 {[%clk 0:03:01.6]} 4.
Qxd4 {[%clk 0:03:02.3]} 4... a6 {[%clk 0:02:58.8]} 5. Bc4 {[%clk 0:03:02.2]}
5... Nc6 {[%clk 0:02:57.8]} 6. Qd3 {[%clk 0:03:02.7]} 6... Bg4 {[%clk 0:02:42]}
7. Nc3 {[%clk 0:02:55.2]} 7... e6 {[%clk 0:02:33.8]} 8. Bf4 {[%clk 0:02:47.9]}
8... Qc7 {[%clk 0:02:22.8]} 9. O-O-O {[%clk 0:02:41.5]} 9... Bxf3 {[%clk
0:02:06.8]} 10. Qxf3 {[%clk 0:02:09.2]} 10... Nf6 {[%clk 0:02:00.3]} 11. Bb3
{[%clk 0:02:05.2]} 11... Be7 {[%clk 0:01:46.5]} 12. Kb1 {[%clk 0:01:48.7]} 12...
O-O {[%clk 0:01:41.8]} 13. g4 {[%clk 0:01:48.9]} 13... Ne5 {[%clk 0:01:32.4]}
14. Qg2 {[%clk 0:01:37.9]} 14... Nexg4 {[%clk 0:01:19.6]} 15. Rdg1 {[%clk
0:01:26.7]} 15... g6 {[%clk 0:01:18.7]} 16. h4 {[%clk 0:01:21.7]} 16... Qc5
{[%clk 0:00:28.3]} 17. f3 {[%clk 0:01:12]} 17... Ne5 {[%clk 0:00:15.3]} 18. h5
{[%clk 0:01:12.5]} 18... Rfc8 {[%clk 0:00:07.3]} 19. Qh3 {[%clk 0:00:23.4]}
19... Kf8 {[%clk 0:00:06.9]} 20. hxg6 {[%clk 0:00:18.8]} 20... Nxg6 {[%clk
0:00:06.5]} 21. Bg5 {[%clk 0:00:15.3]} 21... Ke8 {[%clk 0:00:05.3]} 22. f4
{[%clk 0:00:14.6]} 22... b5 {[%clk 0:00:02.5]} 23. f5 {[%clk 0:00:15.2]} 23...
Ne5 {[%clk 0:00:02.4]} 24. fxe6 {[%clk 0:00:15.1]} 24... b4 {[%clk 0:00:02.2]}
25. exf7+ {[%clk 0:00:14.5]} 25... Kd8 {[%clk 0:00:02.7]} 26. Bxf6 {[%clk
0:00:11.9]} 1-0